Cogmind - Beta 10.2 @@@ ROGUE MODE // 2021.07.05 @ 23:05:29 Player: Nox Result: Destroyed self via exploding Fusion Modulator Performance ------------- Evolutions (0) 0 Regions Visited (1) 200 Robots Destroyed (27) 135 Value Destroyed (445) 445 Prototype IDs (2) 40 Alien Tech Used (0) 0 Bonus (0) 0 TOTAL SCORE: 820 Bonus ------- None Cogmind --------- Core Integrity 0/250 Matter 69/300 Energy 317/325 System Corruption 11% Temperature Cool (172) Movement Walking (120) Location -10/Materials Parts ------- > --- POWER (1) -------- Light Ion Engine > --- PROPULSION (2) --- Aluminum Leg Aluminum Leg > --- UTILITY (2) ------ Small Storage Unit Medium Battery > --- WEAPON (2) ------- Medium Laser Small Laser > --- INVENTORY (6) ---- Ion Engine Large Matter Pod (0) ECM Suite Assault Rifle Light Assault Rifle Grenade Launcher Peak State ------------ > --- POWER ------------ Light Ion Engine > --- PROPULSION ------- Wheel Wheel > --- UTILITY ---------- Small Storage Unit > --- WEAPON ----------- Particle Gun Grenade Launcher > --- INVENTORY -------- Light Ion Engine Wheel Assault Rifle [Rating: 7] Favorites ----------- Power Light Ion Engine Engine Light Ion Engine Propulsion Wheel Leg Aluminum Leg Wheel Wheel Utility Small Storage Unit Device ECM Suite Storage Small Storage Unit Weapon Assault Rifle Energy Gun Small Laser Energy Cannon Light EM Pulse Cannon Ballistic Gun Assault Rifle Launcher Grenade Launcher Special Weapon Welding Torch Build | -11 -10 ------- Run | Scr Mat Slots Evolved . | . . Power . | . . Propulsion . | . . Utility . | . . Weapon . | . . Parts Attached 34 | 6 28 Power 6 | 2 4 Engine 6 | 2 4 Core . | . . Reactor . | . . Propulsion 7 | 2 5 Treads . | . . Leg 2 | . 2 Wheel 5 | 2 3 Hover . | . . Flight . | . . Utility 5 | . 5 Device 1 | . 1 Storage 4 | . 4 Processor . | . . Hackware . | . . Protection . | . . Artifact . | . . Weapon 16 | 2 14 Energy Gun 4 | 1 3 Energy Cannon 2 | . 2 Ballistic Gun 6 | 1 5 Ballistic Cannon . | . . Launcher 3 | . 3 Special Weapon 1 | . 1 Impact Weapon . | . . Slashing Weapon . | . . Piercing Weapon . | . . Special Melee Weapon . | . . Unidentified Prototypes . | . . Parts Lost 6 | . 6 Power 2 | . 2 Propulsion 1 | . 1 Utility . | . . Weapon 3 | . 3 Highest Loss Streak 4 | . 4 Average Slot Usage (%) 86 | . 86 Engine 12 | . 12 Leg 11 | . 11 Wheel 15 | . 15 Storage 18 | . 18 Energy Gun 7 | . 7 Energy Cannon 2 | . 2 Ballistic Gun 10 | . 10 Launcher 3 | . 3 Special Weapon 2 | . 2 Naked Turns . | . . Heaviest Build 14 | 6 14 Greatest Support 20 | 20 20 Greatest Overweight (x) 1 | . 1 Average Overweight (x) . | . . Largest Inventory Capacity 6 | 4 6 Average Capacity 5 | 4 5 Most Carried 6 | 3 6 Average Carried 3 | 1 3 Final Capacity 6 | 4 6 Final Carried 6 | 3 6 Class Distribution -------------------- 63% | Mutant 36% | Scavenger-Mutant Dominant Class ---------------- Mutant | -10/Materials Resources | -11 -10 ----------- Run | Scr Mat Matter Collected 559 | 283 276 Remotely . | . . Salvage Created 572 | 122 450 Parts 63 | 17 46 Haulers Intercepted . | . . Recyclers Shooed . | . . Parts Field Recycled . | . . Retrieved Matter . | . . Parts Self-Destructed . | . . Prevented . | . . Kills | -11 -10 ------- Run | Scr Mat Combat Hostiles Destroyed 12 | 1 11 Guns 3 | 1 2 Cannons 3 | . 3 AOE 6 | . 6 Classes Destroyed 7 | 3 4 Worker 3 | 1 2 Builder 5 | . 5 Tunneler 4 | 4 . Recycler 1 | . 1 Watcher 2 | . 2 Swarmer 5 | . 5 Grunt 7 | 1 6 Best Kill Streak 13 | 5 13 Combat Bots Only 5 | 1 5 Max Kills in Single Turn 3 | 1 3 Gunslinging . | . . Exploded 2 | . 2 Melee . | . . Uniques/NPCs Destroyed . | . . Combat | -11 -10 -------- Run | Scr Mat Damage Taken 959 | 11 948 Core 302 | . 302 Absorbed by Shields . | . . Core Remaining (%) 100 | 100 . Volleys Fired 64 | 11 53 Largest 2 | 2 2 Hottest 90 | 60 90 Shots Fired 116 | 22 94 Gun 89 | 22 67 Cannon 15 | . 15 Launcher 11 | . 11 Special 1 | . 1 Kinetic 49 | 11 38 Thermal 41 | 11 30 Explosive 11 | . 11 Electromagnetic 15 | . 15 Robot Hit Streak 5 | 5 5 Robot Miss Streak 6 | 1 6 Penetration Max . | . . Secondary Targets . | . . Shots Hit Robots 44 | 15 29 Core Hits 39 | 6 33 Critical Hits . | . . Critical Kills . | . . Critical Parts Destroyed . | . . Melee Attacks . | . . Impact . | . . Slashing . | . . Piercing . | . . Sneak Attacks . | . . Combat Hostiles . | . . Follow-up Attacks . | . . Damage Inflicted 1193 | 179 1014 Guns 347 | 179 168 Cannons 166 | . 166 Explosions 680 | . 680 Melee . | . . Ramming . | . . Kinetic 185 | 81 104 Thermal 162 | 98 64 Explosive 680 | . 680 Electromagnetic 166 | . 166 Impact . | . . Slashing . | . . Piercing . | . . Highest Corruption 11 | . 11 Average Corruption 10 | . 10 Corruption Purged . | . . Effects 34 | . 34 Message Errors 5 | . 5 Matter Fused 4 | . 4 Heat Flow Errors 7 | . 7 Energy Discharges 2 | . 2 Data Loss (minor) 4 | . 4 Data Loss (major) 1 | . 1 Misdirections 6 | . 6 Targeting Errors 5 | . 5 Overload Shots . | . . Overflow Damage 36 | . 36 Projectiles 36 | . 36 Explosions . | . . Melee . | . . Knockbacks . | . . Impact . | . . Kinetic . | . . Secondary . | . . Self-Inflicted Damage 164 | . 164 Shots 4 | . 4 Rammed . | . . Targets Rammed . | . . Kicked . | . . Crushed . | . . Highest Temperature 279 | 6 279 Average Temperature 69 | 6 71 Received Heat Transfer 90 | 6 84 Siege Activations . | . . Robots Corrupted 1 | . 1 Combat Hostiles . | . . Parts Fried 3 | . 3 Impact Corruptions . | . . Robots Melted . | . . Combat Hostiles . | . . Parts Melted 1 | . 1 Heat Transferred 375 | 225 150 Parts Sabotaged . | . . Parts Stolen . | . . Parts Stripped . | . . Power Chain Reactions . | . . Missiles Intercepted . | . . Alert | -11 -10 ------- Run | Scr Mat Peak Influence 354 | 45 354 Initial 29 | . 29 Average 167 | 13 190 Maximum Alert Level 1 | . 1 Low Security (%) 58 | 100 52 Level 1 41 | . 47 Level 2 . | . . Level 3 . | . . Level 4 . | . . Level 5 . | . . High Security . | . . Max Security . | . . Squads Dispatched 2 | . 2 Investigation 2 | . 2 Extermination . | . . Reinforcement . | . . Assault . | . . Garrison . | . . Intercept . | . . Construction Impeded . | . . Haulers Reinforced . | . . Stealth | -11 -10 --------- Run | Scr Mat Distress Signals 2 | . 2 Communications Jammed . | . . Distress Signals . | . . Times Spotted 24 | 1 23 Peak Tracking Total 8 | 1 8 Tactical Retreats 1 | . 1 Traps | -11 -10 ------- Run | Scr Mat Traps Triggered 2 | . 2 Indirectly . | . . Trap Hack Attempts . | . . Triggered . | . . Disarmed . | . . Reprogrammed . | . . Reused . | . . Traps Extracted . | . . Installed . | . . Triggered 1 | . 1 Machines | -11 -10 ---------- Run | Scr Mat Machines Disabled 5 | . 5 Max in Single Turn 1 | . 1 Machines Sabotaged . | . . Garrisons Compromised . | . . Overloaded Fab Kills . | . . Fab Network Shutdowns . | . . Hacking | -11 -10 --------- Run | Scr Mat Machines Accessed 6 | . 6 Terminals 4 | . 4 Fabricators . | . . Repair Stations 1 | . 1 Recycling Units 1 | . 1 Scanalyzers . | . . Garrison Access . | . . Total Hacks 32 | . 32 Successful 20 | . 20 Failed 12 | . 12 Catastrophic 2 | . 2 Database Lockouts . | . . Manual . | . . Terminals 21 | . 21 Fabricators . | . . Repair Stations 5 | . 5 Recycling Units 6 | . 6 Scanalyzers . | . . Garrison Access . | . . Terminal Hacks 13 | . 13 Record 6 | . 6 Prototype ID Bank 1 | . 1 Repair Station Index 1 | . 1 Alert Level 2 | . 2 Locate Traps 1 | . 1 Dispatch Records 1 | . 1 Hauler Manifests 1 | . 1 Fabricator Hacks . | . . Repair Station Hacks 2 | . 2 Scan Component 1 | . 1 Repair 1 | . 1 Recycling Unit Hacks 5 | . 5 Recycle Component 2 | . 2 Process 1 | . 1 Report Inventory 1 | . 1 Retrieve Components 1 | . 1 Scanalyzer . | . . Garrison Access Hacks . | . . Unauthorized Hacks . | . . Terminals . | . . Fabricators . | . . Repair Stations . | . . Recycling Units . | . . Scanalyzers . | . . Garrison Access . | . . Data Cores Recovered . | . . Used . | . . Hacking Detections 6 | . 6 Full Trace Events 6 | . 6 Feedback Events . | . . Feedback Blocked . | . . Robot Schematics Acquired . | . . Robots Built . | . . Matter . | . . Time . | . . Total Robot Build Rating . | . . Part Schematics Acquired . | . . Parts Built . | . . Matter . | . . Time . | . . Total Part Build Rating . | . . Parts Repaired 1 | . 1 Time 26 | . 26 Parts Recycled 2 | . 2 Recycled Matter 66 | . 66 Retrieved Matter . | . . Retrieved Components 1 | . 1 Parts Scanalyzed . | . . Part Schematics Acquired . | . . Parts Damaged . | . . Bothacking | -11 -10 ------------ Run | Scr Mat Used RIF Installer . | . . Robots Hacked . | . . Non-combat . | . . Combat . | . . Robot Hacks Applied . | . . Relay Couplers Released . | . . Robots Rewired . | . . Allies Hacked . | . . Hacks Repelled . | . . Allies | -11 -10 -------- Run | Scr Mat Total Allies . | . . Largest Group . | . . Highest-Rated Group . | . . Highest-Rated Ally . | . . Total Orders . | . . Ally Attacks . | . . Total Damage . | . . Kills . | . . Allies Corrupted . | . . Allies Melted . | . . Intel | -11 -10 ------- Run | Scr Mat Robot Analysis Total . | . . Derelict Logs Recovered . | . . Drone Launches . | . . Drone Recoveries . | . . Exploration | -11 -10 ------------- Run | Scr Mat Turns Passed 1037 | 138 899 Spaces Moved 847 | 120 727 Core 18 | 18 . Treads . | . . Legs 250 | . 250 Wheels 579 | 102 477 Hover . | . . Flight . | . . Fastest Speed 50 | 50 80 Average Speed 91 | 75 94 Slowest Speed 150 | 80 150 Overloaded Moves . | . . Propulsion Burnouts . | . . Robots Hopped . | . . Cave-ins Triggered 1 | . 1 Exploration Rate (%) 36 | 6 67 Regions Visited 1 Branch Regions . Pre-discovered Areas . | . . Known Exits Taken . | . . Unknown Exits Taken 1 | 1 . Scrap Searched . | . . Spaces Dug 4 | . 4 Terrain Destroyed 47 | . 47 Melee . | . . Projectile . | . . AOE 47 | . 47 Terrain Rammed . | . . Walls Destroyed . | . . Machines Disabled . | . . Actions | -11 -10 --------- Run | Scr Mat Total 989 | 144 845 Wait . | . . Move 845 | 119 726 Hop . | . . Pick Up 32 | 8 24 Fast Attach 2 | . 2 Attach 14 | 5 9 Detach 1 | . 1 Swap 18 | 1 17 Drop 12 | . 12 Fire 64 | 11 53 Melee . | . . Ram . | . . Kick . | . . Crush . | . . Escape Stasis 1 | . 1 Rewire . | . . Trap . | . . Miscellaneous . | . . Route ------- -11/Scrapyard -10/Materials (discovered 2 exits: [*Mat] / [*Min]) History --------- Turn | Location | Event 2 | -11/Scrapyard | Met Revision 17 86 | -11/Scrapyard | Discovered new exit (range 8) 139 | -11/Scrapyard | Entered Materials 309 | -10/Materials | Build established: Mutant 407 | -10/Materials | Crushed by falling debris 408 | -10/Materials | Core integrity fell below 50% 408 | -10/Materials | System corruption reached 10% 438 | -10/Materials | Lost 4 parts (1p1n2w) 504 | -10/Materials | Discovered new exit (range 12) 615 | -10/Materials | Discovered new exit (range 15) 658 | -10/Materials | Repaired Wheel? 787 | -10/Materials | Core integrity fell below 20% 950 | -10/Materials | Build established: Scavenger-Mutant 1038 | -10/Materials | Destroyed self via exploding Fusion Modulator Last Messages --------------- 00972_ Connecting with Recycling Unit... >>Recycle(Lgt. Assault Rifle) Accepting Lgt. Assault Rifle... >>Recycling(Report) Matter reserves: 66 Inventory: Lgt. Assault Rifle (100%) 00973_ K-01 Serf cleans the Recycling Unit. 00977_ Connecting with Recycling Unit... >>Retrieve(Components) Retrieving 1 components... Lgt. Assault Rifle 00978_ Acquired Lgt. Assault Rifle. 00987_ System corrupted: Matter fused (-8). 01022_ System corrupted: Matter fused (-7). 01025_ System corrupted: Med. Laser targeting data glitched. 01031_ System corrupted: Sml. Laser targeting data glitched. 01037_ System corrupted: Med. Laser targeting data glitched. 01038_ Fusion Modulator explodes. [Achievement: First Step to Greatness] Map ----- +----------------------------------------------------+ | ???????????????????????????????#### | | ???????????????????????????????# | | ???????????????????????????????# | | ???????????????????????????##### | | ???????????????????????????#] | | ???????????????????????????#]] | | ???????????????????????????#|| | | ???????????????????????????#|| | | ???????????????????????????#!! | | ???????????????????????????#!! | | ????????????? ????????????##### | | ????????????? ????????????????# | | ????????????? ???????????????# | | ????????????? #??????????????# | | ????????????? #??????????????# | | ????????????? #??????????????# | | ????????????? #??????????????# | | ???????????## ##?????????????# | | ???????????# #?????????????# | | ???????????? #?????????????# | | ???????????? T +?????????????# | | ???????????? #????????????? | | ???????????? #?????????????##+# | | ?????######## #?????????????????? | | ?????# # #???????????????? | | ?????# @ + #???????????????# " | | ?????# # #????###########??? | | ?????# # #????# ! #??? | | ?????# # #????# #??? | | ?????# = [ # #????# """ #### | | ?????######## #????# """ / | | ????????????# #????# """ #### | | ????????????# #????# """ "Y" #??? | | ????????????# #????# """ """ #??? | | ????????????# #????# #??? | | ????###?????# #????######+####??? | | ????# ### ######### #???? | | ????# #???? | | ????# #???? | | ????# #???? | | ????# ############### #???? | | ????## #??????????????#######???? | | ?????# ?????????????????????????? | | ?????# ??????????????????????????? | | ?????# ???????????????????????????? | | ?????#????????????????????????????? | | ??????????????????????????????????? | | ??????????????????????????????????? | | ??????????????????????????????????? | | ??????????????????????????????????? | +----------------------------------------------------+ Best States ------------- Heat Dissipation 25 Energy Generation 10 Energy Capacity 325 Matter Stores 300 Matter Capacity 450 Sight Range 16 Terrain Scan Density 10 ECM Strength 1 Evasion (%) 50 Item Schematics ----------------- None Robot Schematics ------------------ None Fabricated ------------ Nothing Alien Tech Used ----------------- None Achievements -------------- First Step to Greatness Power Corrupts Storm Trooper System Compromised Unlikely Earthworm Challenges ------------ None Game ------ Seed ForceIonicWell Manual? 0 Play Time 00:34:06 Cumulative 1.1 hours Start 2021.07.05 @ 22:25:11 End 2021.07.05 @ 23:05:29 Sessions 1 Manual Loads 0 Difficulty Rogue Special Mode None Game No. 1 Rogue 1 Adventurer 0 Explorer 0 Win Type - Total 0 Types 0/0/0/0/0/0/0/0/0 Lore% 1 Gallery% 3 Achievement% 4 Wizard Run 0 Options --------- ASCII 0 Keyboard 0 Movement Mouse Keybinds 0 Fullscreen 2 Font 36/X11 Map View 76x50 Tactical HUD 1 Map Filters NONE Filters NONE Steam 1 RUN: 7d988697-d6f0-4ebf-9453-93fc392f1dce